[Event "1st 4NCL International U2050"]
[Site "Telford"]
[Date "2018.11.02"]
[Round "4"]
[White "Chen, Daniel Xingyu"]
[Black "Bryant, Richard Be"]
[Result "1/2-1/2"]
[ECO "B30"]
[WhiteElo "1258"]
[BlackElo "1856"]
[Annotator "NA RC"]
[PlyCount "97"]
[EventDate "2018.10.31"]
[EventType "swiss"]
[EventCountry "GBR"]
[SourceTitle "playchess.com"]
[Source "ChessBase"]
[SourceQuality "1"]
[TimeControl "5400+30"]

{[%evp 24,97,60,50,85,72,85,72,86,84,103,70,119,93,101,73,120,65,69,39,36,32767,32767,48,44,28,31,12,53,19,37,32,33,15,30,14,10,7,18,0,22,-27,14,-25,29,8,167,0,0,0,259,344,318,346,317,321,433,439,443,506,524,561,596,535,32767,32767,509,302,377,358,405,408,369,364,32767,393]} 1. e4 {[%emt 0:00:00]} e6 {[%emt 0:00:00]} 2. d3 {[%emt 0:00:00]} c5 {[%emt 0:00:01]} 3. Nf3 {[%emt 0:00:13]} Nc6 {[%emt 0:00:21]} 4. g3 {[%emt 0:00:16]} d6 {[%emt 0:00:37]} 5. Bg2 {[%emt 0:01:04]} Be7 {[%emt 0:00:12]} 6. O-O {[%emt 0:01:01]} Nf6 {[%emt 0:00:18]} 7. Re1 {[%emt 0:01:45]} e5 {[%emt 0:00:28] B30: Sicilian: 2...Nc6 3 Bb5, lines without ...g6} (7... O-O 8. c3 b5 9. d4 Bb7 10. d5 exd5 11. exd5 Na5 12. Nh4 Qd7 13. Na3 Rfe8 14. b4 Nc4 15. Nxc4 bxc4 16. Rb1 cxb4 17. Rxb4 {1-0 (65) Amin,B (2672)-Kovalenko,I (2659) Martuni 2017}) 8. c3 {[%emt 0:02:47]} Bg4 {[%emt 0:00:53]} 9. Nbd2 {[%emt 0:00:56]} Qd7 {[%emt 0:01:43]} 10. Nb3 $146 {[%emt 0:01:51]} ({Predecessor:} 10. Nf1 O-O 11. Ne3 Bh5 12. h3 {½-½ (24) Le Ny,J (1690)-Pesquet,E (1500) Bretagne 2004}) 10... a5 {[%emt 0:01:02]} 11. a4 {[%emt 0:00:35]} O-O {[%emt 0:03:09]} 12. Nbd2 {[%emt 0:00:51]} Rac8 {[%emt 0:02:01]} 13. Nf1 {[%emt 0:00:29]} Qc7 {[%emt 0:12:31]} (13... Rcd8 $11 {remains equal.}) 14. Ne3 {[%emt 0:01:17]} Bd7 {[%emt 0:00:32]} 15. Nh4 {[%emt 0:02:54]} g6 {[%emt 0:00:37]} 16. Nf3 {[%emt 0:03:48]} Bd8 {[%emt 0:02:42]} 17. Nc4 {[%emt 0:04:47]} Ne7 {[%emt 0:01:39]} (17... Be6 $14) 18. Bh6 {[%emt 0:00:50]} Re8 {[%emt 0:00:19]} 19. Bg5 {[%emt 0:03:05]} Kg7 {[%emt 0:02:04]} 20. Bxf6+ {[%emt 0:04:02]} Kxf6 {[%emt 0:00:04]} 21. Qd2 {[%emt 0:01:58]} Kg7 {[%emt 0:00:13]} 22. b4 {[%emt 0:03:36]} b6 {[%emt 0:04:08]} 23. b5 {[%emt 0:04:52]} Ng8 {[%emt 0:02:26]} 24. Qd1 {[%emt 0:02:02]} Be7 {[%emt 0:00:50]} 25. Nfd2 {[%emt 0:00:38]} Bf6 {[%emt 0:01:34]} 26. Nf1 {[%emt 0:00:38]} Be6 {[%emt 0:01:20]} 27. Nfe3 {[%emt 0:02:07]} Rb8 {[%emt 0:00:26]} 28. Rb1 {[%emt 0:00:44]} h5 {[%emt 0:03:38]} 29. Nd5 {[%emt 0:00:40]} Bxd5 {[%emt 0:00:23]} 30. exd5 {[%emt 0:00:08]} Ne7 {[%emt 0:02:50]} 31. Ne3 {[%emt 0:00:47]} Rh8 {[%emt 0:01:23]} 32. Qf3 {[%emt 0:00:59]} Ng8 {[%emt 0:01:28]} 33. h3 {[%emt 0:01:51]} Rf8 {[%emt 0:00:33]} 34. h4 {[%emt 0:01:30]} e4 $2 {[%emt 0:02:41]} (34... Nh6 $11) 35. Qxe4 $2 {[%emt 0:01:04]} (35. dxe4 $18 Be7 36. Nc4) 35... Bxc3 {[%emt 0:00:19]} 36. Rec1 {[%emt 0:00:21]} Bd4 $2 {[%emt 0:01:08] [#]} (36... Bd2 $11) 37. Qxd4+ $1 {[%emt 0:00:19]} cxd4 {[%emt 0:00:05]} 38. Rxc7 {[%emt 0:01:17]} dxe3 {[%emt 0:00:05]} 39. fxe3 {[%emt 0:00:36]} Re8 {[%emt 0:00:20]} 40. e4 {[%emt 0:00:41]} Ne7 {[%emt 0:00:49]} 41. Rb7 {[%emt 0:00:34]} Nc8 {[%emt 0:01:32]} 42. Bh3 {[%emt 0:00:54]} g5 {[%emt 0:02:59]} 43. Rc1 {[%emt 0:02:52]} g4 {[%emt 0:00:48]} 44. Bg2 {[%emt 0:00:22]} Re7 {[%emt 0:03:09]} 45. Rxe7 {[%emt 0:01:10]} Nxe7 {[%emt 0:00:07]} 46. Rc7 {[%emt 0:00:06]} Kf6 {[%emt 0:01:25]} 47. d4 {[%emt 0:02:05]} Nc8 {[%emt 0:01:53]} 48. Kf2 {[%emt 0:02:36]} Re8 {[%emt 0:01:40]} 49. Ke3 $18 {[%emt 0:02:37] Ke5 [%clk 00:41:17] [%emt 00:00:35]} 1/2-1/2

[Event "1st 4NCL International U2050"]
[Site "Telford"]
[Date "2018.11.02"]
[Round "5"]
[White "De Coverly, Roger D"]
[Black "Somton, Anita"]
[Result "0-1"]
[ECO "B12"]
[WhiteElo "1946"]
[BlackElo "1795"]
[Annotator "NA"]
[PlyCount "88"]
[EventDate "2018.10.31"]
[EventType "swiss"]
[EventCountry "GBR"]
[SourceTitle "playchess.com"]
[Source "ChessBase"]
[SourceQuality "1"]
[TimeControl "5400+30"]

1. e4 {[%emt 0:00:00]} c6 {[%emt 0:00:00]} 2. d4 {[%emt 0:00:00]} d5 {[%emt 0:00:06]} 3. e5 {[%emt 0:00:00]} Bf5 {[%emt 0:00:17]} 4. Nd2 {[%emt 0:00:35]} e6 {[%emt 0:01:19]} 5. Ndf3 {[%emt 0:01:02]} Nd7 {[%emt 0:02:39]} 6. Ne2 {[%emt 0:00:55]} c5 {[%emt 0:00:56]} 7. Ng3 {[%emt 0:01:13]} Bg6 {[%emt 0:01:21]} 8. c3 {[%emt 0:04:50]} cxd4 {[%emt 0:03:40]} 9. cxd4 {[%emt 0:00:26]} h6 {[%emt 0:03:24]} 10. Be2 {[%emt 0:04:18]} Ne7 {[%emt 0:01:40]} 11. O-O {[%emt 0:02:14]} Nc6 {[%emt 0:01:02]} 12. a3 {[%emt 0:02:21]} Be7 {[%emt 0:01:37]} 13. b4 {[%emt 0:01:38]} O-O {[%emt 0:02:08]} 14. b5 {[%emt 0:03:10]} Na5 {[%emt 0:01:40]} 15. Qa4 {[%emt 0:00:25]} Rc8 {[%emt 0:01:10]} 16. Bd2 {[%emt 0:05:05]} Nc4 {[%emt 0:11:19]} 17. Bxc4 {[%emt 0:01:32]} Nb6 {[%emt 0:02:04]} 18. Ba5 {[%emt 0:11:20]} Rxc4 {[%emt 0:01:09]} 19. Qd1 {[%emt 0:01:59]} Qd7 {[%emt 0:01:19]} 20. Nd2 {[%emt 0:17:27]} Rcc8 {[%emt 0:02:31]} 21. Bxb6 {[%emt 0:01:53]} axb6 {[%emt 0:00:08]} 22. a4 {[%emt 0:03:49]} Bc2 {[%emt 0:03:09]} 23. Qg4 {[%emt 0:02:30]} Kh7 {[%emt 0:03:24]} 24. Rfc1 {[%emt 0:02:40]} f5 {[%emt 0:03:42]} 25. exf6 {[%emt 0:03:36]} Rxf6 {[%emt 0:01:11]} 26. Qe2 {[%emt 0:01:56]} Bg6 {[%emt 0:02:23]} 27. h4 {[%emt 0:02:44]} Rcf8 {[%emt 0:03:31]} 28. h5 {[%emt 0:00:55]} Be8 {[%emt 0:01:18]} 29. Nf3 {[%emt 0:02:24]} Bd6 {[%emt 0:01:26]} 30. Ne5 {[%emt 0:02:49]} Bxe5 {[%emt 0:00:51]} 31. Qxe5 {[%emt 0:00:25]} R8f7 {[%emt 0:04:14]} 32. Ra2 {[%emt 0:00:26]} Qe7 {[%emt 0:01:36]} 33. Rac2 {[%emt 0:01:18]} Qb4 {[%emt 0:05:19]} 34. Nh1 {[%emt 0:08:47]} Qxa4 {[%emt 0:01:55]} 35. Rc8 {[%emt 0:02:34]} Qxb5 {[%emt 0:03:30]} 36. Qb8 {[%emt 0:01:47]} Rf8 {[%emt 0:01:19]} 37. Qxb7 {[%emt 0:01:10]} Bxh5 {[%emt 0:01:54]} 38. Rxf8 {[%emt 0:00:28]} Rxf8 {[%emt 0:00:59]} 39. Ng3 {[%emt 0:00:39]} Qb2 {[%emt 0:02:03]} 40. Rf1 {[%emt 0:01:07]} Bg6 {[%emt 0:00:47]} 41. Qe7 {[%emt 0:02:55]} Rf6 {[%emt 0:00:54]} 42. Qd6 {[%emt 0:01:02]} Qxd4 {[%emt 0:00:42]} 43. Ne2 {[%emt 0:01:01]} Qd2 {[%emt 0:01:49]} 44. Ng3 {[%emt 0:00:15]} Bd3 {[%emt 0:00:42]} 0-1

[Event "1st 4NCL International U2050"]
[Site "Telford"]
[Date "2018.11.02"]
[Round "5"]
[White "Truman, Richard G"]
[Black "Parry, Jacques"]
[Result "1-0"]
[ECO "D12"]
[WhiteElo "1902"]
[BlackElo "1625"]
[Annotator "NA"]
[PlyCount "39"]
[EventDate "2018.10.31"]
[EventType "swiss"]
[EventCountry "GBR"]
[SourceTitle "playchess.com"]
[Source "ChessBase"]
[SourceQuality "1"]
[TimeControl "5400+30"]

1. d4 {[%emt 0:00:00]} d5 {[%emt 0:00:17]} 2. c4 {[%emt 0:00:00]} c6 {[%emt 0:00:06]} 3. Nf3 {[%emt 0:00:00]} Nf6 {[%emt 0:00:07]} 4. e3 {[%emt 0:00:37]} Bf5 {[%emt 0:01:12]} 5. cxd5 {[%emt 0:00:54]} cxd5 {[%emt 0:00:20]} 6. Qb3 {[%emt 0:01:39]} Qc7 {[%emt 0:02:51]} 7. Nc3 {[%emt 0:00:31]} e6 {[%emt 0:01:17]} 8. Bd2 {[%emt 0:03:35]} Nbd7 {[%emt 0:03:02]} 9. Rc1 {[%emt 0:03:15]} Qb6 {[%emt 0:00:56]} 10. Nb5 {[%emt 0:04:28]} Bd6 {[%emt 0:04:55]} 11. Nxd6+ {[%emt 0:00:54]} Qxd6 {[%emt 0:00:10]} 12. Qxb7 {[%emt 0:14:31]} O-O {[%emt 0:02:14]} 13. Bb4 {[%emt 0:05:04]} Qb8 {[%emt 0:00:40]} 14. Ba6 {[%emt 0:01:37]} Re8 {[%emt 0:07:35]} 15. O-O {[%emt 0:06:50]} Bd3 {[%emt 0:05:35]} 16. Qxb8 {[%emt 0:03:15]} Rexb8 {[%emt 0:00:31]} 17. Bxd3 {[%emt 0:00:26]} Rxb4 {[%emt 0:00:10]} 18. b3 {[%emt 0:12:54]} a5 {[%emt 0:05:17]} 19. Nd2 {[%emt 0:00:43]} a4 {[%emt 0:01:47]} 20. a3 {[%emt 0:00:06]} 1-0

[Event "1st 4NCL International U2050"]
[Site "Telford"]
[Date "2018.11.02"]
[Round "5"]
[White "Fallowfield, Nicholas"]
[Black "Chen, Daniel Xingyu"]
[Result "1/2-1/2"]
[ECO "E01"]
[WhiteElo "1883"]
[BlackElo "1258"]
[Annotator "NA"]
[PlyCount "53"]
[EventDate "2018.10.31"]
[EventType "swiss"]
[EventCountry "GBR"]
[SourceTitle "playchess.com"]
[Source "ChessBase"]
[SourceQuality "1"]
[TimeControl "5400+30"]

1. Nf3 {[%emt 0:00:00]} Nf6 {[%emt 0:01:16]} 2. c4 {[%emt 0:00:00]} c6 {[%emt 0:01:01]} 3. g3 {[%emt 0:00:00]} d5 {[%emt 0:00:14]} 4. Bg2 {[%emt 0:00:17]} e6 {[%emt 0:00:19]} 5. O-O {[%emt 0:00:09]} Bd6 {[%emt 0:01:21]} 6. Qc2 {[%emt 0:02:33]} Nbd7 {[%emt 0:00:38]} 7. d4 {[%emt 0:01:31]} O-O {[%emt 0:00:36]} 8. Nbd2 {[%emt 0:00:22]} Re8 {[%emt 0:02:56]} 9. e4 {[%emt 0:00:36]} dxe4 {[%emt 0:00:18]} 10. Nxe4 {[%emt 0:00:08]} Nxe4 {[%emt 0:00:28]} 11. Qxe4 {[%emt 0:00:02]} Nf6 {[%emt 0:00:26]} 12. Qc2 {[%emt 0:00:15]} c5 {[%emt 0:03:03]} 13. Rd1 {[%emt 0:02:27]} Qc7 {[%emt 0:00:41]} 14. Bg5 {[%emt 0:01:44]} Nd7 {[%emt 0:03:00]} 15. b3 {[%emt 0:06:24]} Rb8 {[%emt 0:03:42]} 16. dxc5 {[%emt 0:06:23]} Bxc5 {[%emt 0:02:42]} 17. Bf4 {[%emt 0:04:13]} e5 {[%emt 0:00:46]} 18. Re1 {[%emt 0:06:12]} Re7 {[%emt 0:02:37]} 19. Be3 {[%emt 0:03:47]} Bxe3 {[%emt 0:01:29]} 20. Rxe3 {[%emt 0:00:10]} f6 {[%emt 0:00:20]} 21. b4 {[%emt 0:05:49]} Nf8 {[%emt 0:00:56]} 22. Bf1 {[%emt 0:01:59]} b6 {[%emt 0:01:15]} 23. Bd3 {[%emt 0:05:09]} Bb7 {[%emt 0:03:05]} 24. Be4 {[%emt 0:00:47]} Bxe4 {[%emt 0:01:12]} 25. Qxe4 {[%emt 0:00:44]} Qb7 {[%emt 0:01:06]} 26. Qxb7 {[%emt 0:01:31]} Rbxb7 {[%emt 0:00:23]} 27. Rd1 {[%emt 0:04:07]} 1/2-1/2

[Event "1st 4NCL International U2050"]
[Site "Telford"]
[Date "2018.11.02"]
[Round "5"]
[White "Bryant, Richard Be"]
[Black "Di-Vetta, Andrew"]
[Result "1-0"]
[ECO "B23"]
[WhiteElo "1856"]
[BlackElo "1681"]
[Annotator "NA"]
[PlyCount "69"]
[EventDate "2018.10.31"]
[EventType "swiss"]
[EventCountry "GBR"]
[SourceTitle "playchess.com"]
[Source "ChessBase"]
[SourceQuality "1"]
[TimeControl "5400+30"]

1. e4 {[%emt 0:00:00]} c5 {[%emt 0:00:00]} 2. Nc3 {[%emt 0:00:00]} d6 {[%emt 0:00:00]} 3. f4 {[%emt 0:00:00]} Nc6 {[%emt 0:00:07]} 4. Bb5 {[%emt 0:00:07]} Bd7 {[%emt 0:00:22]} 5. Nf3 {[%emt 0:00:23]} a6 {[%emt 0:00:12]} 6. Bxc6 {[%emt 0:00:16]} Bxc6 {[%emt 0:00:04]} 7. d4 {[%emt 0:01:13]} cxd4 {[%emt 0:00:33]} 8. Nxd4 {[%emt 0:00:06]} Nf6 {[%emt 0:00:41]} 9. Nxc6 {[%emt 0:00:46]} bxc6 {[%emt 0:00:05]} 10. Qf3 {[%emt 0:00:29]} Qc7 {[%emt 0:00:56]} 11. O-O {[%emt 0:00:45]} e6 {[%emt 0:00:07]} 12. e5 {[%emt 0:02:07]} Nd5 {[%emt 0:00:32]} 13. Ne4 {[%emt 0:00:52]} f5 {[%emt 0:02:56]} 14. Nxd6+ {[%emt 0:03:48]} Bxd6 {[%emt 0:00:15]} 15. exd6 {[%emt 0:00:04]} Qxd6 {[%emt 0:00:15]} 16. Kh1 {[%emt 0:00:12]} O-O {[%emt 0:00:30]} 17. Rd1 {[%emt 0:06:01]} Qc5 {[%emt 0:01:03]} 18. Qe2 {[%emt 0:00:36]} Rf6 {[%emt 0:01:38]} 19. c4 {[%emt 0:01:12]} Ne7 {[%emt 0:04:36]} 20. Be3 {[%emt 0:01:16]} Qa5 {[%emt 0:02:41]} 21. Rd7 {[%emt 0:01:23]} Re8 {[%emt 0:01:18]} 22. a3 {[%emt 0:03:22]} c5 {[%emt 0:09:00]} 23. Rad1 {[%emt 0:04:09]} Ng6 {[%emt 0:01:06]} 24. Rb7 {[%emt 0:07:35]} Nf8 {[%emt 0:09:30]} 25. Qf2 {[%emt 0:05:07]} Qa4 {[%emt 0:05:12]} 26. b3 {[%emt 0:08:51]} Qc6 {[%emt 0:01:20]} 27. Qf3 {[%emt 0:00:30]} Qc8 {[%emt 0:01:40]} 28. Rb6 {[%emt 0:02:43]} Rf7 {[%emt 0:01:09]} 29. Rdd6 {[%emt 0:06:59]} a5 {[%emt 0:04:47]} 30. Rbc6 {[%emt 0:01:06]} Rc7 {[%emt 0:01:21]} 31. Bxc5 {[%emt 0:00:38]} Rd8 {[%emt 0:02:43]} 32. Rxd8 {[%emt 0:03:12]} Qxd8 {[%emt 0:00:03]} 33. Bb6 {[%emt 0:00:19]} Rxc6 {[%emt 0:00:39]} 34. Bxd8 {[%emt 0:00:09]} Rd6 {[%emt 0:00:14]} 35. Be7 {[%emt 0:01:44]} 1-0

[Event "1st 4NCL International U2050"]
[Site "Telford"]
[Date "2018.11.02"]
[Round "5"]
[White "Walley, A Clive"]
[Black "Potter, Steven"]
[Result "1-0"]
[ECO "B00"]
[WhiteElo "1846"]
[BlackElo "1771"]
[Annotator "NA"]
[PlyCount "73"]
[EventDate "2018.10.31"]
[EventType "swiss"]
[EventCountry "GBR"]
[SourceTitle "playchess.com"]
[Source "ChessBase"]
[SourceQuality "1"]
[TimeControl "5400+30"]

1. e4 {[%emt 0:00:00]} e6 {[%emt 0:00:00]} 2. d4 {[%emt 0:00:00]} b6 {[%emt 0:00:00]} 3. Bd3 {[%emt 0:00:06]} Bb7 {[%emt 0:00:00]} 4. Nf3 {[%emt 0:00:27]} c5 {[%emt 0:00:00]} 5. c3 {[%emt 0:00:13]} Nf6 {[%emt 0:00:00]} 6. Qe2 {[%emt 0:00:18]} Be7 {[%emt 0:00:11]} 7. e5 {[%emt 0:01:35]} Nd5 {[%emt 0:00:35]} 8. dxc5 {[%emt 0:00:53]} bxc5 {[%emt 0:00:48]} 9. c4 {[%emt 0:00:50]} Nb4 {[%emt 0:01:03]} 10. Be4 {[%emt 0:00:28]} N8c6 {[%emt 0:01:04]} 11. a3 {[%emt 0:01:33]} Na6 {[%emt 0:00:58]} 12. Nc3 {[%emt 0:02:52]} Nc7 {[%emt 0:01:55]} 13. O-O {[%emt 0:01:19]} Na5 {[%emt 0:02:20]} 14. Bf4 {[%emt 0:06:42]} O-O {[%emt 0:03:30]} 15. Rad1 {[%emt 0:04:08]} Bxe4 {[%emt 0:10:42]} 16. Nxe4 {[%emt 0:04:53]} f5 {[%emt 0:02:28]} 17. exf6 {[%emt 0:06:22]} Bxf6 {[%emt 0:01:37]} 18. Nxf6+ {[%emt 0:06:07]} gxf6 {[%emt 0:00:51]} 19. Bd6 {[%emt 0:03:03]} Rf7 {[%emt 0:01:41]} 20. Bxc5 {[%emt 0:02:09]} Nb3 {[%emt 0:06:51]} 21. Bd6 {[%emt 0:05:08]} Ne8 {[%emt 0:00:55]} 22. Bb4 {[%emt 0:08:44]} a5 {[%emt 0:00:22]} 23. Bc3 {[%emt 0:02:39]} a4 {[%emt 0:00:38]} 24. Nd4 {[%emt 0:03:38]} Qb6 {[%emt 0:02:41]} 25. Nxb3 {[%emt 0:02:31]} Qxb3 {[%emt 0:00:47]} 26. Rd4 {[%emt 0:01:19]} Qb7 {[%emt 0:00:41]} 27. Rfd1 {[%emt 0:02:31]} Rg7 {[%emt 0:00:20]} 28. Rg4 {[%emt 0:00:51]} Rg6 {[%emt 0:06:54]} 29. Rd3 {[%emt 0:05:50]} Kf7 {[%emt 0:01:40]} 30. Bb4 {[%emt 0:04:11]} Rc8 {[%emt 0:01:59]} 31. Rdg3 {[%emt 0:08:57]} Qc6 {[%emt 0:01:16]} 32. Rxg6 {[%emt 0:03:14]} hxg6 {[%emt 0:00:22]} 33. Qg4 {[%emt 0:00:48]} e5 {[%emt 0:00:23]} 34. Qxg6+ {[%emt 0:00:49]} Ke6 {[%emt 0:00:03]} 35. Qg4+ {[%emt 0:01:16]} f5 {[%emt 0:00:47]} 36. Qg8+ {[%emt 0:00:49]} Kf6 {[%emt 0:00:08]} 37. Rg6# {[%emt 0:00:26]} 1-0

[Event "1st 4NCL International U2050"]
[Site "Telford"]
[Date "2018.11.02"]
[Round "5"]
[White "Neatherway, A Philip"]
[Black "Ali, Golam S"]
[Result "1/2-1/2"]
[ECO "B90"]
[WhiteElo "1813"]
[BlackElo "1859"]
[Annotator "NA"]
[PlyCount "141"]
[EventDate "2018.10.31"]
[EventType "swiss"]
[EventCountry "GBR"]
[SourceTitle "playchess.com"]
[Source "ChessBase"]
[SourceQuality "1"]
[TimeControl "5400+30"]

1. e4 {[%emt 0:00:22]} c5 {[%emt 0:00:00]} 2. Nf3 {[%emt 0:00:26]} d6 {[%emt 0:00:00]} 3. d4 {[%emt 0:00:18]} cxd4 {[%emt 0:00:00]} 4. Nxd4 {[%emt 0:00:04]} Nf6 {[%emt 0:00:00]} 5. Nc3 {[%emt 0:00:04]} a6 {[%emt 0:00:00]} 6. Be2 {[%emt 0:01:11]} Nc6 {[%emt 0:00:09]} 7. Be3 {[%emt 0:00:31]} e6 {[%emt 0:00:12]} 8. Qd2 {[%emt 0:00:57]} Qc7 {[%emt 0:00:13]} 9. a4 {[%emt 0:02:58]} Nxd4 {[%emt 0:00:21]} 10. Bxd4 {[%emt 0:00:18]} Be7 {[%emt 0:00:10]} 11. O-O {[%emt 0:00:31]} Bd7 {[%emt 0:00:38]} 12. Qe3 {[%emt 0:05:22]} Bc6 {[%emt 0:02:57]} 13. Rad1 {[%emt 0:02:20]} O-O {[%emt 0:02:17]} 14. b4 {[%emt 0:09:28]} Rfe8 {[%emt 0:18:54]} 15. b5 {[%emt 0:04:47]} axb5 {[%emt 0:00:31]} 16. axb5 {[%emt 0:00:33]} Bd7 {[%emt 0:01:48]} 17. Bb6 {[%emt 0:08:06]} Qc8 {[%emt 0:00:53]} 18. Ra1 {[%emt 0:02:22]} h6 {[%emt 0:03:07]} 19. Rxa8 {[%emt 0:15:01]} Qxa8 {[%emt 0:00:08]} 20. Rd1 {[%emt 0:00:29]} d5 {[%emt 0:08:01]} 21. exd5 {[%emt 0:02:26]} exd5 {[%emt 0:01:30]} 22. Qg3 {[%emt 0:03:03]} Bf8 {[%emt 0:16:35]} 23. h3 {[%emt 0:09:12]} Qa3 {[%emt 0:02:55]} 24. Bd4 {[%emt 0:04:42]} Ne4 {[%emt 0:02:42]} 25. Nxe4 {[%emt 0:02:29]} Rxe4 {[%emt 0:01:24]} 26. Qxa3 {[%emt 0:01:15]} Bxa3 {[%emt 0:00:29]} 27. Bf3 {[%emt 0:00:29]} Re7 {[%emt 0:03:37]} 28. b6 {[%emt 0:08:10]} Ba4 {[%emt 0:02:28]} 29. Ra1 {[%emt 0:02:57]} Bd6 {[%emt 0:00:23]} 30. g3 {[%emt 0:00:10]} Bxc2 {[%emt 0:03:39]} 31. Ra8+ {[%emt 0:00:55]} Kh7 {[%emt 0:00:39]} 32. Bxd5 {[%emt 0:00:05]} Rd7 {[%emt 0:05:42]} 33. Ra5 {[%emt 0:05:49]} Bb4 {[%emt 0:02:44]} 34. Rb5 {[%emt 0:00:11]} Be1 {[%emt 0:02:42]} 35. Be3 {[%emt 0:07:13]} Bd3 {[%emt 0:01:23]} 36. Rc5 {[%emt 0:01:35]} Bb4 {[%emt 0:02:15]} 37. Bf3 {[%emt 0:00:06]} Bxc5 {[%emt 0:00:38]} 38. Bxc5 {[%emt 0:00:06]} f5 {[%emt 0:01:18]} 39. Kg2 {[%emt 0:00:50]} Be4 {[%emt 0:00:40]} 40. g4 {[%emt 0:00:40]} Rd3 {[%emt 0:05:09]} 41. Bxe4 {[%emt 0:00:33]} fxe4 {[%emt 0:00:25]} 42. Be3 {[%emt 0:00:35]} Kg6 {[%emt 0:01:58]} 43. Kg3 {[%emt 0:00:17]} Rb3 {[%emt 0:02:45]} 44. Kf4 {[%emt 0:00:19]} Rb4 {[%emt 0:00:22]} 45. h4 {[%emt 0:00:45]} Kf6 {[%emt 0:00:49]} 46. h5 {[%emt 0:00:20]} Ke6 {[%emt 0:01:14]} 47. g5 {[%emt 0:00:31]} hxg5+ {[%emt 0:02:04]} 48. Kxg5 {[%emt 0:00:04]} Rb1 {[%emt 0:00:36]} 49. Kf4 {[%emt 0:01:32]} Kd5 {[%emt 0:00:15]} 50. Kf5 {[%emt 0:00:12]} Rh1 {[%emt 0:00:27]} 51. Kg6 {[%emt 0:00:10]} Rg1+ {[%emt 0:00:16]} 52. Kf5 {[%emt 0:00:11]} Rg2 {[%emt 0:00:44]} 53. Kf4 {[%emt 0:00:26]} Rg1 {[%emt 0:00:49]} 54. Kf5 {[%emt 0:00:05]} Rh1 {[%emt 0:01:03]} 55. Kg6 {[%emt 0:00:05]} Kc4 {[%emt 0:00:35]} 56. Kxg7 {[%emt 0:00:41]} Rxh5 {[%emt 0:00:12]} 57. Kf6 {[%emt 0:00:45]} Kd3 {[%emt 0:00:36]} 58. Ke6 {[%emt 0:00:43]} Rh3 {[%emt 0:01:00]} 59. Bc5 {[%emt 0:00:40]} Rh6+ {[%emt 0:00:22]} 60. Kd7 {[%emt 0:00:40]} Rc6 {[%emt 0:00:11]} 61. Be3 {[%emt 0:00:10]} Kc4 {[%emt 0:00:10]} 62. Ke7 {[%emt 0:00:38]} Kb5 {[%emt 0:00:09]} 63. Kd7 {[%emt 0:00:09]} Ka6 {[%emt 0:00:43]} 64. Bd4 {[%emt 0:00:18]} Rxb6 {[%emt 0:00:24]} 65. Bxb6 {[%emt 0:00:07]} Kxb6 {[%emt 0:00:03]} 66. Kd6 {[%emt 0:00:04]} Ka5 {[%emt 0:01:27]} 67. Kd5 {[%emt 0:00:13]} b5 {[%emt 0:00:27]} 68. Kxe4 {[%emt 0:00:45]} b4 {[%emt 0:00:12]} 69. Kd3 {[%emt 0:00:10]} Kb5 {[%emt 0:02:41]} 70. f4 {[%emt 0:01:31]} Kc6 {[%emt 0:00:49]} 71. Kc4 {[%emt 0:00:49]} 1/2-1/2

[Event "1st 4NCL International U2050"]
[Site "Telford"]
[Date "2018.11.02"]
[Round "5"]
[White "Gogia, Armaan"]
[Black "Whitehead, Mark A"]
[Result "1/2-1/2"]
[ECO "B42"]
[WhiteElo "1808"]
[BlackElo "1945"]
[Annotator "NA"]
[PlyCount "53"]
[EventDate "2018.10.31"]
[EventType "swiss"]
[EventCountry "GBR"]
[SourceTitle "playchess.com"]
[Source "ChessBase"]
[SourceQuality "1"]
[TimeControl "5400+30"]

1. e4 {[%emt 0:01:36]} c5 {[%emt 0:00:00]} 2. Nf3 {[%emt 0:00:14]} e6 {[%emt 0:00:00]} 3. d4 {[%emt 0:00:07]} cxd4 {[%emt 0:00:03]} 4. Nxd4 {[%emt 0:00:05]} a6 {[%emt 0:00:08]} 5. Bd3 {[%emt 0:00:04]} Bc5 {[%emt 0:00:08]} 6. Nb3 {[%emt 0:00:09]} Ba7 {[%emt 0:00:24]} 7. O-O {[%emt 0:01:46]} Ne7 {[%emt 0:00:55]} 8. Qe2 {[%emt 0:02:37]} O-O {[%emt 0:00:54]} 9. c4 {[%emt 0:01:50]} d6 {[%emt 0:04:39]} 10. Nc3 {[%emt 0:02:03]} Nbc6 {[%emt 0:01:25]} 11. Be3 {[%emt 0:01:56]} e5 {[%emt 0:01:15]} 12. Bxa7 {[%emt 0:01:35]} Rxa7 {[%emt 0:00:08]} 13. Rfd1 {[%emt 0:02:28]} Ng6 {[%emt 0:00:58]} 14. Nd5 {[%emt 0:03:38]} Qg5 {[%emt 0:02:42]} 15. Qd2 {[%emt 0:05:11]} Qxd2 {[%emt 0:07:29]} 16. Rxd2 {[%emt 0:00:21]} Be6 {[%emt 0:00:20]} 17. Be2 {[%emt 0:01:16]} a5 {[%emt 0:02:46]} 18. Rad1 {[%emt 0:03:19]} a4 {[%emt 0:03:05]} 19. Na1 {[%emt 0:01:27]} Bxd5 {[%emt 0:02:38]} 20. cxd5 {[%emt 0:01:49]} Nd4 {[%emt 0:00:33]} 21. Nc2 {[%emt 0:00:26]} Nxe2+ {[%emt 0:01:33]} 22. Rxe2 {[%emt 0:00:07]} Rc8 {[%emt 0:00:10]} 23. g3 {[%emt 0:00:22]} Ra5 {[%emt 0:02:11]} 24. Rdd2 {[%emt 0:02:01]} Rac5 {[%emt 0:00:41]} 25. Ne3 {[%emt 0:02:16]} Ne7 {[%emt 0:00:13]} 26. Rc2 {[%emt 0:00:19]} Kf8 {[%emt 0:02:23]} 27. Kf1 {[%emt 0:00:28]} 1/2-1/2

[Event "1st 4NCL International U2050"]
[Site "Telford"]
[Date "2018.11.02"]
[Round "5"]
[White "Ward, Andrew"]
[Black "Hughes, Peter"]
[Result "1/2-1/2"]
[ECO "A80"]
[WhiteElo "1790"]
[BlackElo "1874"]
[Annotator "NA"]
[PlyCount "47"]
[EventDate "2018.10.31"]
[EventType "swiss"]
[EventCountry "GBR"]
[SourceTitle "playchess.com"]
[Source "ChessBase"]
[SourceQuality "1"]
[TimeControl "5400+30"]

1. d4 {[%emt 0:00:00]} f5 {[%emt 0:00:00]} 2. Bg5 {[%emt 0:00:00]} h6 {[%emt 0:00:00]} 3. Bh4 {[%emt 0:00:00]} g5 {[%emt 0:00:10]} 4. e4 {[%emt 0:00:00]} Nf6 {[%emt 0:00:15]} 5. e5 {[%emt 0:00:00]} e6 {[%emt 0:00:10]} 6. Bg3 {[%emt 0:00:06]} f4 {[%emt 0:05:37]} 7. Bd3 {[%emt 0:00:06]} Rg8 {[%emt 0:01:39]} 8. exf6 {[%emt 0:00:36]} Qxf6 {[%emt 0:03:14]} 9. Qh5+ {[%emt 0:00:11]} Qf7 {[%emt 0:04:08]} 10. Qxf7+ {[%emt 0:00:25]} Kxf7 {[%emt 0:00:05]} 11. Nf3 {[%emt 0:00:09]} d6 {[%emt 0:03:58]} 12. O-O {[%emt 0:03:14]} Bd7 {[%emt 0:07:08]} 13. Nbd2 {[%emt 0:04:35]} Be7 {[%emt 0:02:43]} 14. Nb3 {[%emt 0:02:05]} Nc6 {[%emt 0:05:52]} 15. c3 {[%emt 0:00:19]} Raf8 {[%emt 0:01:28]} 16. Rae1 {[%emt 0:03:03]} fxg3 {[%emt 0:05:12]} 17. fxg3 {[%emt 0:00:09]} Kg7 {[%emt 0:01:28]} 18. Bc4 {[%emt 0:01:45]} Nd8 {[%emt 0:02:56]} 19. g4 {[%emt 0:04:12]} Rf4 {[%emt 0:05:28]} 20. h3 {[%emt 0:02:33]} Rgf8 {[%emt 0:03:15]} 21. Nc1 {[%emt 0:00:30]} R4f7 {[%emt 0:06:18]} 22. Ne2 {[%emt 0:05:08]} d5 {[%emt 0:04:26]} 23. Bd3 {[%emt 0:00:16]} Bd6 {[%emt 0:00:50]} 24. b4 {[%emt 0:03:47]} 1/2-1/2